Cogmind - Beta 14 @@@ ROGUE MODE // 2024.09.12 @ 11:39:35 Player: Maienne du Crabe Result: Destroyed by as-48388 with Assembled F-torch Performance ------------- Evolutions (0) 0 Regions Visited (2) 400 Robots Destroyed (24) 120 Value Destroyed (623) 623 Prototype IDs (2) 40 Alien Tech Used (0) 0 Bonus (0) 0 TOTAL SCORE: 1183 Bonus ------- None Cogmind --------- Core Integrity 0/250 Matter 329/400 Energy 89/100 System Corruption 17% Temperature Warm (158) Movement Treading (160) Location -10/Mines Parts ------- > --- POWER (1) -------- (None) > --- PROPULSION (2) --- Light Treads > --- UTILITY (2) ------ Medium Matter Pod > --- WEAPON (2) ------- Particle Gun > --- INVENTORY (5) ---- (None) Peak State ------------ > --- POWER ------------ Ion Engine > --- PROPULSION ------- Light Treads Light Treads > --- UTILITY ---------- Improved Heat Sink High-capacity Storage Unit > --- WEAPON ----------- Assault Rifle Mining Laser > --- INVENTORY -------- Ion Engine Ion Engine Light Nuclear Core Light Treads Flexi-carbon Leg Heat Sink Improved Heat Sink Small Battery High-capacity Battery Medium Matter Pod Weight Redist. System Visual Processing Unit Sensor Array Sensor Array Sensor Array ECM Suite Tractor Beam Particle Gun Assault Rifle [Rating: 12] Favorites ----------- Power Ion Engine Engine Ion Engine Propulsion Light Treads Treads Light Treads Utility ECM Suite Device ECM Suite Storage High-capacity Storage Unit Processor Visual Processing Unit Weapon Assault Rifle Energy Gun EM Pulse Gun Ballistic Gun Assault Rifle Special Weapon Mining Laser Build | -11 -10 -10 ------- Run | Yrd Mat Min Slots Evolved . | . . . Power . | . . . Propulsion . | . . . Utility . | . . . Weapon . | . . . Parts Attached 35 | 7 20 8 Power 5 | 1 4 . Engine 5 | 1 4 . Core . | . . . Reactor . | . . . Propulsion 11 | 2 7 2 Treads 11 | 2 7 2 Leg . | . . . Wheel . | . . . Hover . | . . . Flight . | . . . Utility 9 | 2 4 3 Device 3 | 1 1 1 Storage 5 | 1 3 1 Processor 1 | . . 1 Hackware . | . . . Protection . | . . . Artifact . | . . . Weapon 10 | 2 5 3 Energy Gun 3 | 1 1 1 Energy Cannon . | . . . Ballistic Gun 6 | 1 4 1 Ballistic Cannon . | . . . Launcher . | . . . Special Weapon 1 | . . 1 Impact Weapon . | . . . Slashing Weapon . | . . . Piercing Weapon . | . . . Special Melee Weapon . | . . . Unidentified Prototypes . | . . . Corrupted Parts 1 | . . 1 System Corruption 4 | . . 4 Parts Lost 8 | . 2 6 Power 1 | . . 1 Propulsion 1 | . . 1 Utility 3 | . 1 2 Weapon 3 | . 1 2 Highest Loss Streak 4 | . 1 4 To Critical Strikes . | . . . Average Slot Usage (%) 97 | . 98 65 Engine 13 | . 14 4 Treads 27 | . 28 12 Device 12 | . 13 5 Storage 13 | . 14 11 Energy Gun 7 | . 7 7 Ballistic Gun 19 | . 19 16 Peak Build Rating 12 | 7 9 12 Average Rating 8 | 5 8 6 On Entrance 5 | . 7 9 Naked Turns 16 | . . 16 Heaviest Build 90 | 12 90 51 Greatest Support 40 | 40 40 40 Greatest Overweight (x) 2 | . 2 2 Average Overweight (x) . | . . . Largest Inventory Capacity 25 | 8 25 20 Average Capacity 18 | 7 19 10 Most Carried 20 | 5 20 20 Average Carried 16 | 2 17 8 Final Capacity 20 | 8 20 5 Final Carried 20 | 5 20 . Class Distribution -------------------- 100% | Mutant Dominant Class ---------------- Mutant | -10/Materials Mutant | -10/Mines Resources | -11 -10 -10 ----------- Run | Yrd Mat Min Matter Collected 816 | 317 499 . Remotely 193 | 81 112 . Salvage Created 1138 | 129 988 21 Parts 62 | 8 54 . Haulers Intercepted 2 | . 2 . Recyclers Shooed 2 | . 2 . Parts Field Recycled . | . . . Retrieved Matter . | . . . Parts Self-Destructed . | . . . Prevented . | . . . Kills | -11 -10 -10 ------- Run | Yrd Mat Min Combat Hostiles Destroyed 17 | . 15 2 Guns 15 | . 13 2 AOE 2 | . 2 . Classes Destroyed 8 | 3 4 1 Worker 1 | 1 . . Builder 1 | . 1 . Tunneler 1 | 1 . . Hauler 2 | . 2 . Recycler 3 | 1 2 . Watcher 1 | . 1 . Grunt 15 | . 15 . Assembled 2 | . . 2 Best Kill Streak 5 | 2 5 1 Combat Bots Only 3 | . 3 1 Max Kills in Single Turn 2 | 1 2 1 Gunslinging . | . . . Exploded 1 | . 1 . Melee . | . . . Uniques/NPCs Destroyed . | . . . Combat | -11 -10 -10 -------- Run | Yrd Mat Min Hostile Shots Fired 138 | . 81 57 Missed 27 | . 18 9 Damage Taken 1572 | . 866 706 Core 251 | . 93 158 Absorbed by Shields . | . . . Regen/Repaired (Parts) 213 | . 213 . Core Remaining (%) 100 | 100 . . Volleys Fired 80 | 3 67 10 Largest 2 | 2 2 2 Hottest 100 | 60 60 100 Shots Fired 147 | 6 126 15 Gun 146 | 6 126 14 Cannon . | . . . Launcher . | . . . Special 1 | . . 1 Kinetic 98 | 3 88 7 Thermal 8 | . . 8 Explosive . | . . . Electromagnetic 41 | 3 38 . Robot Hit Streak 11 | 4 11 7 Robot Miss Streak 5 | . 3 5 Penetration Max . | . . . Secondary Targets 1 | . 1 . Max Gunslinging Chain 1 | . 1 . Shots Hit Robots 102 | 4 88 10 Core Hits 42 | 3 36 3 Critical Kills . | . . . Critical Parts Destroyed 1 | . 1 . Critical Strikes 1 | . 1 . Destroy 1 | . 1 . Melee Attacks . | . . . Impact . | . . . Slashing . | . . . Piercing . | . . . Sneak Attacks . | . . . Combat Hostiles . | . . . Follow-up Attacks . | . . . Damage Inflicted 1570 | 50 1356 164 Guns 1362 | 50 1172 140 Cannons . | . . . Explosions 184 | . 184 . Melee . | . . . Ramming . | . . . Kinetic 763 | 10 691 62 Thermal 286 | . 184 102 Explosive . | . . . Electromagnetic 521 | 40 481 . Impact . | . . . Slashing . | . . . Piercing . | . . . Highest Corruption 17 | . 1 17 Average Corruption 4 | . 1 9 Corruption Purged . | . . . Corruption Blocked . | . . . Effects 4 | . 1 3 Energy Discharges 1 | . . 1 Data Loss (minor) 2 | . . 2 Misfires 1 | . 1 . Overload Shots . | . . . Overflow Damage 16 | . 16 . Projectiles . | . . . Explosions 16 | . 16 . Melee . | . . . Knockbacks . | . . . Impact . | . . . Kinetic . | . . . Secondary . | . . . Self-Inflicted Damage 53 | . 53 . Shots 2 | . 2 . Rammed . | . . . Targets Rammed . | . . . Kicked . | . . . Crushed . | . . . Highest Temperature 138 | 20 105 138 Average Temperature 37 | 15 35 49 Received Heat Transfer 759 | . 459 300 Siege Activations . | . . . Robots Corrupted . | . . . Combat Hostiles . | . . . Parts Fried . | . . . Impact Corruptions . | . . . Robots Melted . | . . . Combat Hostiles . | . . . Parts Melted . | . . . Heat Transferred 385 | . 150 235 Parts Sabotaged . | . . . Parts Stolen . | . . . Parts Stripped . | . . . Power Chain Reactions 3 | . 3 . Alert | -11 -10 -10 ------- Run | Yrd Mat Min Peak Influence 209 | 15 209 39 Initial 39 | . 9 39 Average 62 | 6 67 13 Maximum Alert Level 1 | . 1 . Low Security (%) 97 | 100 97 100 Level 1 2 | . 2 . Level 2 . | . . . Level 3 . | . . . Level 4 . | . . . Level 5 . | . . . High Security . | . . . Max Security . | . . . Squads Dispatched 4 | . 4 . Investigation 4 | . 4 . Extermination . | . . . Reinforcement . | . . . Assault . | . . . Garrison . | . . . Intercept . | . . . Searches Triggered . | . . . Construction Impeded . | . . . Haulers Reinforced . | . . . Active Scanning Responses . | . . . Cargo Convoy Interrupts . | . . . Stealth | -11 -10 -10 --------- Run | Yrd Mat Min Distress Signals 1 | . 1 . Communications Jammed . | . . . Distress Signals . | . . . Times Spotted 45 | . 35 10 Peak Tracking Total 8 | . 4 8 Tactical Retreats 4 | . 3 1 Traps | -11 -10 -10 ------- Run | Yrd Mat Min Traps Triggered 2 | . 2 . Indirectly . | . . . Trap Hack Attempts . | . . . Triggered . | . . . Disarmed . | . . . Reprogrammed . | . . . Reused . | . . . Traps Extracted . | . . . Installed . | . . . Triggered . | . . . Machines | -11 -10 -10 ---------- Run | Yrd Mat Min Machines Disabled 2 | . 2 . Max in Single Turn 1 | . 1 . Machines Repaired . | . . . Machines Dismantled . | . . . Machines Sabotaged . | . . . Overloaded Fab Kills . | . . . Hacking | -11 -10 -10 --------- Run | Yrd Mat Min Machines Accessed 10 | . 10 . Terminals 7 | . 7 . Fabricators . | . . . Repair Stations 1 | . 1 . Recycling Units 2 | . 2 . Scanalyzers . | . . . Garrison Access . | . . . Total Hacks 29 | . 29 . Successful 15 | . 15 . Failed 14 | . 14 . Catastrophic 1 | . 1 . Database Lockouts . | . . . Manual . | . . . Terminals 18 | . 18 . Fabricators . | . . . Repair Stations 8 | . 8 . Recycling Units 3 | . 3 . Scanalyzers . | . . . Garrison Access . | . . . Terminal Hacks 6 | . 6 . Robot Analysis 1 | . 1 . Prototype ID Bank 1 | . 1 . Emergency Access Points 2 | . 2 . Alert Level 1 | . 1 . Locate Traps 1 | . 1 . Fabricator Hacks . | . . . Repair Station Hacks 6 | . 6 . Scan Component 3 | . 3 . Repair 3 | . 3 . Recycling Unit Hacks 3 | . 3 . Report Inventory 3 | . 3 . Scanalyzer . | . . . Garrison Access Hacks . | . . . Unauthorized Hacks . | . . . Terminals . | . . . Fabricators . | . . . Repair Stations . | . . . Recycling Units . | . . . Scanalyzers . | . . . Garrison Access . | . . . Data Cores Recovered . | . . . Used . | . . . Hacking Detections 9 | . 9 . Full Trace Events 6 | . 6 . Feedback Events . | . . . Feedback Blocked . | . . . Robot Schematics Acquired . | . . . Robots Built . | . . . Authchips . | . . . Time . | . . . Total Robot Build Rating . | . . . Part Schematics Acquired . | . . . Parts Built . | . . . Authchips . | . . . Time . | . . . Total Part Build Rating . | . . . Parts Repaired 3 | . 3 . Time 78 | . 78 . Parts Recycled . | . . . Recycled Matter . | . . . Retrieved Matter . | . . . Retrieved Components . | . . . Parts Scanalyzed . | . . . Part Schematics Acquired . | . . . Parts Damaged . | . . . Bothacking | -11 -10 -10 ------------ Run | Yrd Mat Min Used RIF Installer . | . . . Robots Hacked . | . . . Non-combat . | . . . Combat . | . . . Robot Hacks Applied . | . . . Relay Couplers Released . | . . . Fabnet Peak Effective % . | . . . Robots Rewired . | . . . Allies Hacked . | . . . Hacks Repelled . | . . . Allies | -11 -10 -10 -------- Run | Yrd Mat Min Total Allies . | . . . Largest Group . | . . . Highest-Rated Group . | . . . Highest-Rated Ally . | . . . Total Orders . | . . . Ally Attacks . | . . . Total Damage . | . . . Kills . | . . . Allies Corrupted . | . . . Allies Melted . | . . . Intel | -11 -10 -10 ------- Run | Yrd Mat Min Robot Analysis Total 1 | . 1 . Derelict Logs Recovered . | . . . Drone Launches . | . . . Drone Recoveries . | . . . Exploration | -11 -10 -10 ------------- Run | Yrd Mat Min Turns Passed 2535 | 120 2298 117 Spaces Moved 927 | 61 799 67 Core 59 | 3 . 56 Treads 868 | 58 799 11 Legs . | . . . Wheels . | . . . Hover . | . . . Flight . | . . . Fastest Speed 50 | 50 160 50 Average Speed 220 | 154 233 118 Slowest Speed 320 | 160 320 240 Overloaded Moves . | . . . Propulsion Burnouts . | . . . Robots Hopped . | . . . Cave-ins Triggered . | . . . Exploration Rate (%) 45 | 4 98 33 Regions Visited 2 Branch Regions 1 Pre-discovered Areas . | . . . Known Exits Taken . | . . . Unknown Exits Taken 2 | 1 1 . Scrap Searched . | . . . Spaces Dug . | . . . Terrain Destroyed 8 | . 8 . Melee . | . . . Projectile . | . . . AOE 8 | . 8 . Terrain Rammed . | . . . Walls Destroyed . | . . . Machines Disabled . | . . . Actions | -11 -10 -10 --------- Run | Yrd Mat Min Total 1272 | 78 1107 87 Wait 184 | 3 181 . Move 925 | 60 798 67 Hop . | . . . Pick Up 32 | 5 26 1 Fast Attach 9 | 7 2 . Attach 8 | . 2 6 Detach . | . . . Swap 18 | . 16 2 Drop 16 | . 15 1 Fire 80 | 3 67 10 Melee . | . . . Ram . | . . . Kick . | . . . Crush . | . . . Escape Stasis . | . . . Rewire . | . . . Trap . | . . . Miscellaneous . | . . . Route ------- -11/Scrapyard -10/Materials (discovered 4 exits: [*Mat x3] / [*Min]) -10/Mines History --------- Turn | Location | Event 8 | -11/Scrapyard | Discovered new exit (range 15) 121 | -11/Scrapyard | Entered Materials 248 | -10/Materials | Discovered new exit (range 7) 303 | -10/Materials | Build established: Mutant 619 | -10/Materials | Discovered new exit (range 14) 998 | -10/Materials | Repaired Assault Rifle 1368 | -10/Materials | Discovered new exit (range 16) 1744 | -10/Materials | Discovered new exit (range 4) 1906 | -10/Materials | Repaired Lgt. Treads 1934 | -10/Materials | Repaired Assault Rifle 2419 | -10/Materials | Entered Mines 2420 | -10/Mines | Assembled infested the area 2425 | -10/Mines | Assisted by a Guerilla fighting off Assembled 2460 | -10/Mines | System corruption reached 10% 2461 | -10/Mines | Released all parts (4) 2464 | -10/Mines | Core integrity fell below 50% 2492 | -10/Mines | Lost 4 parts (1p1n1u1w) 2525 | -10/Mines | Core integrity fell below 20% 2536 | -10/Mines | Destroyed by as-48388 with Assembled F-torch Last Messages --------------- 02456_ Complication: System interference. 02456_ Assault Rifle temporarily disabled. 02459_ Ion Engine destroyed. 02459_ Mining Laser destroyed. 02459_ System corrupted by crushing effect (+5). 02459_ System corrupted by crushing effect (+3). 02461_ Lgt. Treads destroyed. 02461_ Released Assault Rifle. 02461_ Released Hcp. Storage Unit. 02461_ Released Lgt. Treads. 02461_ Released Imp. Heat Sink. 02466_ System corrupted: Energy discharge (-21). 02514_ System corrupted: Component data lost. 02515_ Knocked back. 02528_ Assault Rifle destroyed. 02528_ Destroyed Asb. Hover Unit. 02528_ Visual Processing Unit destroyed. 02528_ System corrupted by crushing effect (+3). 02531_ System corrupted: Component data lost. 02532_ as-38423 destroyed. Map ----- +----------------------------------------------------+ | ##??????????????????????????#?????????????????? | | #?????????????????????????? ???????????????? | | ##?????????????###????????? ???????????????? | | ##????????????? #??????? ???????????????? | | #????????????? #?????? ???????????????? | | ###???????????? #????? ""???????????????? | | ????? #???# """ ?????????????? | | ## ##### ##????????? ### """??????????????? | | ##?##????????????????# ???????????????? | | #????????????????????? ????????????????? | | ##????????????????????# ????????????????? | | ##??????????????????## ?????????????????? | | ##????????????????## ??????????????????? | | ##????????????#### ???????????????????? | | #????????????? ????????????????????? | | #########????????# #????????????????????? | | #???????????# #????????????????????? | | ######## #############a #????????????????????? | | #####??????# #????????????????????? | | ???????????############### #????????????????????? | | ?????????????????????????# #????????????????????? | | ????????????????????????## a#????????????????????? | | ???????????????????###### #????????????????????? | | ???????????????????# ##???????????????????? | | ???????????????????# !!!% ##??????????????????? | | ???????????????????# !@ #??????????????????? | | ???????????????????# $ ! #??????????????????? | | ???????????????????# !!! #??????????????????? | | ???????????????????# ##??????????????????? | | ???????????????????#### ##???????????????????? | | ??????????????????????#######????????????????????? | | ?????????????????????????????????????????????????? | | ?????????????????????????????????????????????????? | | ?????????????????????????????????????????????????? | | | | | | | | | | | | | | | | | | | | | | | | | | | | | | | | | +----------------------------------------------------+ Best States ------------- Heat Dissipation 39 Energy Generation 10 Energy Capacity 250 Matter Stores 338 Matter Capacity 400 Sight Range 18 Terrain Scan Density 10 ECM Strength 1 Evasion (%) 50 Recoil Reduction 2 Item Schematics ----------------- None Robot Schematics ------------------ None Fabricated ------------ Nothing Alien Tech Used ----------------- None Achievements -------------- None Challenges ------------ None Game ------ Seed DimensionalDeepSuperbattery Manual? 0 Play Time 00:28:51 Cumulative 9.6 hours Start 2024.09.12 @ 11:13:29 End 2024.09.12 @ 11:39:35 Sessions 1 Manual Loads 0 Difficulty Rogue Special Mode None Game No. 15 Rogue 15 Adventurer 0 Explorer 0 Win Type - Total 0 Types 0/0/0/0/0/0/0/0/0 Lore% 5 Gallery% 17 Achievement% 16 Wizard Run 0 Options --------- Layout 0 ASCII 0 Keyboard 0 Movement Numpad Keybinds 0 Fullscreen 1 Font 18/X11 Map View 76x50 Zoom Use 27% Tactical HUD 1 Map Filters NONE Filters NONE Steam 1 RUN: 0c69309f-3e37-485f-ab7c-39bf6af06293